[Event "Titled Tuesday Blitz April 4 Early 2023"]
[White "Vaibhav Jayant Raut"]
[Black "Sargissyan, Sargis"]
[WhiteFideId "5089034"]
[BlackFideId "13303210"]
[WhiteElo "2156"]
[BlackElo "2109"]
[Result "1-0"]
[Round "03"]
[TimeControl "180+2"]
[Date "2023.04.04"]
[WhiteClock "0:01:37"]
[BlackClock "0:00:19"]

1. c4 {[%clk 0:02:57]}  e5 {[%clk 0:02:59]} 2. g3 {[%clk 0:02:58]}  Nf6 {[%clk 0:02:59]} 3. Bg2 {[%clk 0:02:57]}  d5 {[%clk 0:03:00]} 4. cxd5 {[%clk 0:02:58]}  Nxd5 {[%clk 0:03:01]} 5. Nf3 {[%clk 0:02:58]}  Nc6 {[%clk 0:03:00]} 6. O-O {[%clk 0:02:59]}  Be7 {[%clk 0:03:00]} 7. d4 {[%clk 0:02:58]}  e4 {[%clk 0:02:57]} 8. Ne5 {[%clk 0:02:57]}  f5 {[%clk 0:02:45]} 9. Nxc6 {[%clk 0:02:53]}  bxc6 {[%clk 0:02:45]} 10. a3 {[%clk 0:02:54]}  O-O {[%clk 0:02:42]} 11. Qc2 {[%clk 0:02:53]}  Qd6 {[%clk 0:02:37]} 12. Nc3 {[%clk 0:02:51]}  Be6 {[%clk 0:02:27]} 13. Nxd5 {[%clk 0:02:50]}  cxd5 {[%clk 0:02:21]} 14. Bf4 {[%clk 0:02:49]}  Qb6 {[%clk 0:02:20]} 15. Qxc7 {[%clk 0:02:39]}  Qxc7 {[%clk 0:02:16]} 16. Bxc7 {[%clk 0:02:40]}  Rfc8 {[%clk 0:02:16]} 17. Rac1 {[%clk 0:02:31]}  Kf7 {[%clk 0:01:53]} 18. e3 {[%clk 0:02:15]}  Bd7 {[%clk 0:01:43]} 19. Rc3 {[%clk 0:02:12]}  Bb5 {[%clk 0:01:12]} 20. Rfc1 {[%clk 0:01:57]}  Ke6 {[%clk 0:01:10]} 21. Bf1 {[%clk 0:01:50]}  Bxf1 {[%clk 0:01:05]} 22. Kxf1 {[%clk 0:01:51]}  Kd7 {[%clk 0:01:05]} 23. Be5 {[%clk 0:01:50]}  g6 {[%clk 0:00:31]} 24. Rc7+ {[%clk 0:01:47]}  Rxc7 {[%clk 0:00:30]} 25. Rxc7+ {[%clk 0:01:48]}  Ke6 {[%clk 0:00:30]} 26. b4 {[%clk 0:01:38]}  a5 {[%clk 0:00:27]} 27. b5 {[%clk 0:01:38]}  Bxa3 {[%clk 0:00:19]} 28. b6 {[%clk 0:01:37]} 1-0


[Site "https://www.chess.com"]

[Event "Titled Tuesday Blitz April 4 Early 2023"]
[White "Ronka, Erik"]
[Black "Toropov, Pavel"]
[WhiteFideId "505080"]
[BlackFideId "24129178"]
[WhiteElo "2264"]
[BlackElo "2182"]
[Result "0-1"]
[Round "03"]
[TimeControl "180+2"]
[Date "2023.04.04"]
[WhiteClock "0:00:04"]
[BlackClock "0:00:12"]

1. d4 {[%clk 0:03:00]}  d5 {[%clk 0:03:00]} 2. Nf3 {[%clk 0:03:01]}  c6 {[%clk 0:03:00]} 3. g3 {[%clk 0:03:01]}  Nf6 {[%clk 0:03:01]} 4. Bg2 {[%clk 0:03:02]}  Bg4 {[%clk 0:02:59]} 5. O-O {[%clk 0:03:02]}  Nbd7 {[%clk 0:02:59]} 6. c4 {[%clk 0:03:02]}  e6 {[%clk 0:02:57]} 7. h3 {[%clk 0:03:02]}  Bxf3 {[%clk 0:02:58]} 8. Bxf3 {[%clk 0:03:02]}  Be7 {[%clk 0:02:57]} 9. Nd2 {[%clk 0:02:59]}  O-O {[%clk 0:02:57]} 10. e4 {[%clk 0:02:56]}  a5 {[%clk 0:02:57]} 11. e5 {[%clk 0:02:54]}  Ne8 {[%clk 0:02:57]} 12. cxd5 {[%clk 0:02:54]}  cxd5 {[%clk 0:02:56]} 13. Re1 {[%clk 0:02:52]}  Nb8 {[%clk 0:02:54]} 14. Nf1 {[%clk 0:02:48]}  Nc6 {[%clk 0:02:55]} 15. Be3 {[%clk 0:02:42]}  Nc7 {[%clk 0:02:55]} 16. Be2 {[%clk 0:02:30]}  Na6 {[%clk 0:02:53]} 17. a3 {[%clk 0:02:29]}  Qb6 {[%clk 0:02:50]} 18. Rb1 {[%clk 0:02:19]}  Nc7 {[%clk 0:02:46]} 19. g4 {[%clk 0:02:09]}  a4 {[%clk 0:02:40]} 20. Qd3 {[%clk 0:01:56]}  Qb3 {[%clk 0:02:26]} 21. Qd2 {[%clk 0:01:48]}  Qb6 {[%clk 0:02:21]} 22. Qd3 {[%clk 0:01:48]}  Na5 {[%clk 0:02:02]} 23. f4 {[%clk 0:01:45]}  Nc4 {[%clk 0:02:00]} 24. Bf2 {[%clk 0:01:45]}  f5 {[%clk 0:01:58]} 25. gxf5 {[%clk 0:01:41]}  exf5 {[%clk 0:01:54]} 26. Ng3 {[%clk 0:01:36]}  g6 {[%clk 0:01:50]} 27. Bf3 {[%clk 0:01:35]}  Qc6 {[%clk 0:01:44]} 28. Rec1 {[%clk 0:01:29]}  b5 {[%clk 0:01:44]} 29. Ne2 {[%clk 0:01:11]}  Rfd8 {[%clk 0:01:39]} 30. Kg2 {[%clk 0:01:08]}  Ne6 {[%clk 0:01:37]} 31. h4 {[%clk 0:01:08]}  h5 {[%clk 0:01:36]} 32. Kh2 {[%clk 0:01:05]}  Kf7 {[%clk 0:01:35]} 33. Bxh5 {[%clk 0:01:03]}  Ng7 {[%clk 0:01:04]} 34. Bf3 {[%clk 0:00:57]}  Rh8 {[%clk 0:01:04]} 35. Nc3 {[%clk 0:00:50]}  Rad8 {[%clk 0:01:01]} 36. b3 {[%clk 0:00:38]}  axb3 {[%clk 0:01:00]} 37. Rxb3 {[%clk 0:00:39]}  Bxh4 {[%clk 0:00:59]} 38. Bxh4 {[%clk 0:00:37]}  Rxh4+ {[%clk 0:01:00]} 39. Kg3 {[%clk 0:00:37]}  g5 {[%clk 0:00:22]} 40. Rxb5 {[%clk 0:00:37]}  gxf4+ {[%clk 0:00:17]} 41. Kg2 {[%clk 0:00:33]}  Qg6+ {[%clk 0:00:16]} 42. Kf1 {[%clk 0:00:33]}  Ne3+ {[%clk 0:00:16]} 43. Ke1 {[%clk 0:00:20]}  Qg1+ {[%clk 0:00:15]} 44. Kd2 {[%clk 0:00:20]}  Rh2+ {[%clk 0:00:13]} 45. Ne2 {[%clk 0:00:20]}  Nc4+ {[%clk 0:00:13]} 46. Rxc4 {[%clk 0:00:19]}  dxc4 {[%clk 0:00:13]} 47. Qxc4+ {[%clk 0:00:19]}  Kg6 {[%clk 0:00:14]} 48. Rb6+ {[%clk 0:00:18]}  Kh7 {[%clk 0:00:14]} 49. Qd3 {[%clk 0:00:11]}  Rxd4 {[%clk 0:00:13]} 50. Rd6 {[%clk 0:00:05]}  Qe3+ {[%clk 0:00:11]} 51. Kc2 {[%clk 0:00:04]}  Rxd3 {[%clk 0:00:11]} 52. Rxd3 {[%clk 0:00:04]}  Rxe2+ {[%clk 0:00:11]} 53. Bxe2 {[%clk 0:00:04]}  Qxe2+ {[%clk 0:00:12]} 54. Kc3 {[%clk 0:00:04]}  Qxe5+ {[%clk 0:00:12]} 0-1


[Site "https://www.chess.com"]

[Event "Titled Tuesday Blitz April 4 Early 2023"]
[White "Maxfan2008"]
[Black "Skliarov, Viktor"]
[BlackFideId "14106736"]
[WhiteElo "2434"]
[BlackElo "2317"]
[Result "0-1"]
[Round "03"]
[TimeControl "180+2"]
[Date "2023.04.04"]
[WhiteClock "0:00:16"]
[BlackClock "0:00:19"]

1. d4 {[%clk 0:03:00]}  Nf6 {[%clk 0:02:59]} 2. c4 {[%clk 0:03:01]}  e6 {[%clk 0:02:59]} 3. Nc3 {[%clk 0:03:01]}  Bb4 {[%clk 0:02:58]} 4. Nf3 {[%clk 0:03:00]}  b6 {[%clk 0:02:57]} 5. e3 {[%clk 0:02:59]}  Bb7 {[%clk 0:02:56]} 6. Bd3 {[%clk 0:02:59]}  Bxc3+ {[%clk 0:02:55]} 7. bxc3 {[%clk 0:02:59]}  Ne4 {[%clk 0:02:55]} 8. Qc2 {[%clk 0:02:59]}  f5 {[%clk 0:02:55]} 9. O-O {[%clk 0:02:59]}  O-O {[%clk 0:02:55]} 10. c5 {[%clk 0:02:59]}  bxc5 {[%clk 0:02:48]} 11. Ba3 {[%clk 0:02:54]}  Ng5 {[%clk 0:02:42]} 12. Nd2 {[%clk 0:02:45]}  Nh3+ {[%clk 0:02:24]} 13. Kh1 {[%clk 0:02:42]}  Qh4 {[%clk 0:02:24]} 14. f3 {[%clk 0:02:14]}  Nf2+ {[%clk 0:02:14]} 15. Kg1 {[%clk 0:02:09]}  Nxd3 {[%clk 0:02:09]} 16. Qxd3 {[%clk 0:02:09]}  d6 {[%clk 0:01:41]} 17. dxc5 {[%clk 0:02:08]}  Ba6 {[%clk 0:01:41]} 18. c4 {[%clk 0:02:07]}  d5 {[%clk 0:01:41]} 19. Rfc1 {[%clk 0:01:55]}  Nc6 {[%clk 0:01:37]} 20. Qc2 {[%clk 0:01:49]}  Rae8 {[%clk 0:01:21]} 21. Qa4 {[%clk 0:01:43]}  Bb7 {[%clk 0:01:20]} 22. Rab1 {[%clk 0:01:41]}  Ba8 {[%clk 0:01:20]} 23. f4 {[%clk 0:01:31]}  d4 {[%clk 0:01:14]} 24. Nf3 {[%clk 0:01:29]}  Qg4 {[%clk 0:01:12]} 25. Qd1 {[%clk 0:01:14]}  dxe3 {[%clk 0:01:06]} 26. g3 {[%clk 0:00:59]}  Rd8 {[%clk 0:00:49]} 27. Qf1 {[%clk 0:00:57]}  Nd4 {[%clk 0:00:40]} 28. Nxd4 {[%clk 0:00:55]}  Rxd4 {[%clk 0:00:40]} 29. c6 {[%clk 0:00:49]}  Re8 {[%clk 0:00:40]} 30. Bc5 {[%clk 0:00:44]}  e2 {[%clk 0:00:29]} 31. Qe1 {[%clk 0:00:39]}  Re4 {[%clk 0:00:28]} 32. Rb7 {[%clk 0:00:35]}  Rxf4 {[%clk 0:00:28]} 33. Bf2 {[%clk 0:00:29]}  Rxc4 {[%clk 0:00:27]} 34. Rcb1 {[%clk 0:00:17]}  Rxc6 {[%clk 0:00:21]} 35. Rxa7 {[%clk 0:00:16]}  Rd6 {[%clk 0:00:19]} 0-1


[Site "https://www.chess.com"]

[Event "Titled Tuesday Blitz April 4 Early 2023"]
[White "Harriott, Tyrell"]
[Black "Taboas Rodriguez, Daniel"]
[WhiteFideId "2086484"]
[BlackFideId "2208466"]
[WhiteElo "2107"]
[BlackElo "2365"]
[Result "0-1"]
[Round "03"]
[TimeControl "180+2"]
[Date "2023.04.04"]
[WhiteClock "0:00:03"]
[BlackClock "0:00:18"]

1. d4 {[%clk 0:03:00]}  Nf6 {[%clk 0:02:59]} 2. e3 {[%clk 0:03:01]}  d5 {[%clk 0:02:57]} 3. Bd3 {[%clk 0:03:02]}  c5 {[%clk 0:02:57]} 4. c3 {[%clk 0:03:02]}  Bg4 {[%clk 0:02:51]} 5. Ne2 {[%clk 0:03:01]}  Nc6 {[%clk 0:02:50]} 6. f4 {[%clk 0:03:02]}  e6 {[%clk 0:02:49]} 7. O-O {[%clk 0:03:02]}  Bd6 {[%clk 0:02:49]} 8. Nd2 {[%clk 0:03:02]}  Qc7 {[%clk 0:02:45]} 9. Nf3 {[%clk 0:03:02]}  O-O {[%clk 0:02:42]} 10. Ne5 {[%clk 0:03:01]}  Bf5 {[%clk 0:02:37]} 11. Ng3 {[%clk 0:03:01]}  Bxd3 {[%clk 0:02:34]} 12. Qxd3 {[%clk 0:03:02]}  Nd7 {[%clk 0:02:21]} 13. b3 {[%clk 0:02:59]}  f6 {[%clk 0:02:19]} 14. Ng4 {[%clk 0:02:59]}  f5 {[%clk 0:02:17]} 15. Nf2 {[%clk 0:02:57]}  cxd4 {[%clk 0:02:13]} 16. exd4 {[%clk 0:02:32]}  Bxf4 {[%clk 0:02:12]} 17. Bxf4 {[%clk 0:02:29]}  Qxf4 {[%clk 0:02:12]} 18. Rae1 {[%clk 0:02:27]}  Rae8 {[%clk 0:02:12]} 19. Nh3 {[%clk 0:02:19]}  Qd6 {[%clk 0:02:03]} 20. Qf3 {[%clk 0:02:14]}  Nf6 {[%clk 0:02:00]} 21. Nh5 {[%clk 0:02:04]}  Ne4 {[%clk 0:01:54]} 22. Re2 {[%clk 0:01:57]}  g6 {[%clk 0:01:34]} 23. N5f4 {[%clk 0:01:54]}  e5 {[%clk 0:01:29]} 24. dxe5 {[%clk 0:01:44]}  Nxe5 {[%clk 0:01:30]} 25. Qe3 {[%clk 0:01:40]}  Ng4 {[%clk 0:01:30]} 26. Qd4 {[%clk 0:01:35]}  Rd8 {[%clk 0:01:16]} 27. Qxa7 {[%clk 0:01:34]}  Nxc3 {[%clk 0:01:04]} 28. Re6 {[%clk 0:01:25]}  Qb8 {[%clk 0:01:03]} 29. Qb6 {[%clk 0:01:12]}  Ne4 {[%clk 0:00:50]} 30. Rxg6+ {[%clk 0:01:01]}  hxg6 {[%clk 0:00:39]} 31. Qxg6+ {[%clk 0:01:00]}  Kh8 {[%clk 0:00:39]} 32. Qh5+ {[%clk 0:00:56]}  Kg7 {[%clk 0:00:31]} 33. Ne6+ {[%clk 0:00:36]}  Kf6 {[%clk 0:00:30]} 34. Qxf5+ {[%clk 0:00:24]}  Ke7 {[%clk 0:00:28]} 35. Qh7+ {[%clk 0:00:12]}  Kd6 {[%clk 0:00:18]} 36. Nxf8 {[%clk 0:00:10]}  Rxf8 {[%clk 0:00:19]} 37. Rd1 {[%clk 0:00:03]}  Qa7+ {[%clk 0:00:18]} 38. Kh1 {[%clk 0:00:03]}  Ngf2+ {[%clk 0:00:18]} 0-1


[Site "https://www.chess.com"]

[Event "Titled Tuesday Blitz April 4 Early 2023"]
[White "Meduri, Aakaash"]
[Black "Atanasov, Anthony"]
[WhiteFideId "2032252"]
[BlackFideId "2623897"]
[WhiteElo "2113"]
[BlackElo "2326"]
[Result "0-1"]
[Round "03"]
[TimeControl "180+2"]
[Date "2023.04.04"]
[WhiteClock "0:00:03"]
[BlackClock "0:00:04"]

1. e4 {[%clk 0:02:59]}  e5 {[%clk 0:02:56]} 2. Nf3 {[%clk 0:02:58]}  Nf6 {[%clk 0:02:52]} 3. Nxe5 {[%clk 0:02:56]}  d6 {[%clk 0:02:52]} 4. Nf3 {[%clk 0:02:55]}  Nxe4 {[%clk 0:02:53]} 5. d4 {[%clk 0:02:54]}  d5 {[%clk 0:02:53]} 6. Bd3 {[%clk 0:02:51]}  Nc6 {[%clk 0:02:53]} 7. O-O {[%clk 0:02:49]}  Be7 {[%clk 0:02:53]} 8. c4 {[%clk 0:02:48]}  O-O {[%clk 0:02:50]} 9. cxd5 {[%clk 0:02:44]}  Qxd5 {[%clk 0:02:51]} 10. Nc3 {[%clk 0:02:44]}  Nxc3 {[%clk 0:02:50]} 11. bxc3 {[%clk 0:02:42]}  Bg4 {[%clk 0:02:50]} 12. Be2 {[%clk 0:02:41]}  Rad8 {[%clk 0:02:44]} 13. Bf4 {[%clk 0:02:35]}  Bd6 {[%clk 0:02:39]} 14. Bxd6 {[%clk 0:02:34]}  Qxd6 {[%clk 0:02:38]} 15. h3 {[%clk 0:02:33]}  Bh5 {[%clk 0:02:37]} 16. Re1 {[%clk 0:02:30]}  b6 {[%clk 0:02:36]} 17. Qa4 {[%clk 0:02:29]}  Na5 {[%clk 0:02:33]} 18. Qb5 {[%clk 0:02:22]}  Bxf3 {[%clk 0:02:29]} 19. Bxf3 {[%clk 0:02:22]}  c5 {[%clk 0:02:27]} 20. Rad1 {[%clk 0:02:13]}  cxd4 {[%clk 0:02:23]} 21. Rxd4 {[%clk 0:02:12]}  Qc7 {[%clk 0:02:22]} 22. Rxd8 {[%clk 0:02:04]}  Qxd8 {[%clk 0:02:23]} 23. Bd5 {[%clk 0:01:48]}  Qc7 {[%clk 0:02:17]} 24. c4 {[%clk 0:01:35]}  g6 {[%clk 0:02:16]} 25. Re8 {[%clk 0:01:31]}  Qf4 {[%clk 0:02:11]} 26. Qd7 {[%clk 0:01:18]}  Qc1+ {[%clk 0:02:07]} 27. Kh2 {[%clk 0:01:18]}  Qf4+ {[%clk 0:02:07]} 28. Kg1 {[%clk 0:01:18]}  Rxe8 {[%clk 0:02:06]} 29. Qxe8+ {[%clk 0:01:17]}  Kg7 {[%clk 0:02:06]} 30. Qc8 {[%clk 0:01:10]}  Qc1+ {[%clk 0:01:59]} 31. Kh2 {[%clk 0:01:10]}  Qf4+ {[%clk 0:01:59]} 32. Kg1 {[%clk 0:01:10]}  Qf6 {[%clk 0:01:58]} 33. Qc7 {[%clk 0:01:07]}  a6 {[%clk 0:01:49]} 34. f4 {[%clk 0:00:56]}  h5 {[%clk 0:01:31]} 35. Qa7 {[%clk 0:00:38]}  Nxc4 {[%clk 0:01:12]} 36. Bxc4 {[%clk 0:00:33]}  Qd4+ {[%clk 0:01:11]} 37. Kh1 {[%clk 0:00:33]}  Qxc4 {[%clk 0:01:10]} 38. Qxb6 {[%clk 0:00:34]}  Qxa2 {[%clk 0:00:56]} 39. Qd4+ {[%clk 0:00:34]}  Kh7 {[%clk 0:00:54]} 40. Qa7 {[%clk 0:00:31]}  a5 {[%clk 0:00:52]} 41. Kh2 {[%clk 0:00:28]}  a4 {[%clk 0:00:51]} 42. f5 {[%clk 0:00:23]}  gxf5 {[%clk 0:00:25]} 43. Qd7 {[%clk 0:00:22]}  Kg6 {[%clk 0:00:19]} 44. Qc6+ {[%clk 0:00:23]}  Kg7 {[%clk 0:00:13]} 45. Qc3+ {[%clk 0:00:21]}  Kh7 {[%clk 0:00:12]} 46. Qf6 {[%clk 0:00:21]}  Qe6 {[%clk 0:00:10]} 47. Qd4 {[%clk 0:00:17]}  a3 {[%clk 0:00:10]} 48. Qh4 {[%clk 0:00:15]}  Qe5+ {[%clk 0:00:08]} 49. Kh1 {[%clk 0:00:15]}  Qa1+ {[%clk 0:00:07]} 50. Kh2 {[%clk 0:00:15]}  Qe5+ {[%clk 0:00:08]} 51. Kh1 {[%clk 0:00:16]}  f4 {[%clk 0:00:08]} 52. Qf2 {[%clk 0:00:14]}  Qa1+ {[%clk 0:00:05]} 53. Kh2 {[%clk 0:00:14]}  Qe5 {[%clk 0:00:05]} 54. Qc2+ {[%clk 0:00:14]}  Kg7 {[%clk 0:00:04]} 55. Kh1 {[%clk 0:00:14]}  Qe1+ {[%clk 0:00:04]} 56. Kh2 {[%clk 0:00:14]}  Qg3+ {[%clk 0:00:05]} 57. Kh1 {[%clk 0:00:15]}  Qe1+ {[%clk 0:00:05]} 58. Kh2 {[%clk 0:00:15]}  Qe5 {[%clk 0:00:06]} 59. Qb3 {[%clk 0:00:15]}  f3+ {[%clk 0:00:06]} 60. Kg1 {[%clk 0:00:15]}  Qe1+ {[%clk 0:00:05]} 61. Kh2 {[%clk 0:00:16]}  Qe5+ {[%clk 0:00:06]} 62. Kg1 {[%clk 0:00:16]}  Qe1+ {[%clk 0:00:05]} 63. Kh2 {[%clk 0:00:16]}  f2 {[%clk 0:00:05]} 64. Qg3+ {[%clk 0:00:16]}  Kf6 {[%clk 0:00:05]} 65. Qf4+ {[%clk 0:00:16]}  Ke6 {[%clk 0:00:05]} 66. Qc4+ {[%clk 0:00:17]}  Ke5 {[%clk 0:00:05]} 67. Qc5+ {[%clk 0:00:17]}  Ke4 {[%clk 0:00:06]} 68. Qc4+ {[%clk 0:00:18]}  Ke3 {[%clk 0:00:06]} 69. Qc5+ {[%clk 0:00:18]}  Kd2 {[%clk 0:00:06]} 70. Qd4+ {[%clk 0:00:18]}  Kc2 {[%clk 0:00:06]} 71. Qc4+ {[%clk 0:00:19]}  Kb2 {[%clk 0:00:06]} 72. Qd4+ {[%clk 0:00:18]}  Kb3 {[%clk 0:00:03]} 73. Qb6+ {[%clk 0:00:17]}  Qb4 {[%clk 0:00:02]} 74. Qxf2 {[%clk 0:00:17]}  a2 {[%clk 0:00:03]} 75. Qe3+ {[%clk 0:00:17]}  Qc3 {[%clk 0:00:03]} 76. Qb6+ {[%clk 0:00:17]}  Kc2 {[%clk 0:00:03]} 77. Qf2+ {[%clk 0:00:17]}  Qd2 {[%clk 0:00:04]} 78. Qc5+ {[%clk 0:00:17]}  Qc3 {[%clk 0:00:04]} 79. Qf5+ {[%clk 0:00:17]}  Qd3 {[%clk 0:00:04]} 80. Qc5+ {[%clk 0:00:17]}  Kd1 {[%clk 0:00:04]} 81. Qg1+ {[%clk 0:00:16]}  Kd2 {[%clk 0:00:04]} 82. Qf2+ {[%clk 0:00:16]}  Qe2 {[%clk 0:00:05]} 83. Qd4+ {[%clk 0:00:17]}  Kc2 {[%clk 0:00:05]} 84. Qc5+ {[%clk 0:00:17]}  Kb3 {[%clk 0:00:06]} 85. Qb6+ {[%clk 0:00:13]}  Ka4 {[%clk 0:00:05]} 86. Qd4+ {[%clk 0:00:10]}  Kb5 {[%clk 0:00:04]} 87. Qd5+ {[%clk 0:00:10]}  Kb6 {[%clk 0:00:04]} 88. Qd6+ {[%clk 0:00:10]}  Ka5 {[%clk 0:00:05]} 89. Qc5+ {[%clk 0:00:10]}  Ka4 {[%clk 0:00:04]} 90. Qd4+ {[%clk 0:00:10]}  Kb3 {[%clk 0:00:04]} 91. Qb6+ {[%clk 0:00:11]}  Kc3 {[%clk 0:00:03]} 92. Qc5+ {[%clk 0:00:10]}  Qc4 {[%clk 0:00:04]} 93. Qe3+ {[%clk 0:00:10]}  Kb4 {[%clk 0:00:05]} 94. Qb6+ {[%clk 0:00:10]}  Kc3 {[%clk 0:00:05]} 95. Qe3+ {[%clk 0:00:10]}  Kc2 {[%clk 0:00:06]} 96. Qf2+ {[%clk 0:00:10]}  Kd3 {[%clk 0:00:06]} 97. Qf1+ {[%clk 0:00:09]}  Kd4 {[%clk 0:00:06]} 98. Qf4+ {[%clk 0:00:10]}  Kd5 {[%clk 0:00:06]} 99. Qxf7+ {[%clk 0:00:10]}  Kd4 {[%clk 0:00:07]} 100. Qf4+ {[%clk 0:00:10]}  Kd5 {[%clk 0:00:07]} 101. Qf5+ {[%clk 0:00:09]}  Kd6 {[%clk 0:00:07]} 102. Qf6+ {[%clk 0:00:09]}  Qe6 {[%clk 0:00:06]} 103. Qd8+ {[%clk 0:00:09]}  Ke5 {[%clk 0:00:06]} 104. Qg5+ {[%clk 0:00:08]}  Kd4 {[%clk 0:00:03]} 105. Qd8+ {[%clk 0:00:08]}  Qd5 {[%clk 0:00:02]} 106. Qh4+ {[%clk 0:00:05]}  Kc5 {[%clk 0:00:02]} 107. Qf2+ {[%clk 0:00:04]}  Kc6 {[%clk 0:00:03]} 108. Qc2+ {[%clk 0:00:03]}  Kd6 {[%clk 0:00:02]} 109. Qg6+ {[%clk 0:00:04]}  Qe6 {[%clk 0:00:02]} 110. Qd3+ {[%clk 0:00:03]}  Ke7 {[%clk 0:00:03]} 111. Qh7+ {[%clk 0:00:03]}  Kf6 {[%clk 0:00:03]} 112. Qh6+ {[%clk 0:00:04]}  Ke5 {[%clk 0:00:02]} 113. Qe3+ {[%clk 0:00:04]}  Kd6 {[%clk 0:00:03]} 114. Qd4+ {[%clk 0:00:03]}  Qd5 {[%clk 0:00:03]} 115. Qf6+ {[%clk 0:00:04]}  Kd7 {[%clk 0:00:03]} 116. Qg7+ {[%clk 0:00:04]}  Ke6 {[%clk 0:00:04]} 117. Qg8+ {[%clk 0:00:04]}  Kd6 {[%clk 0:00:03]} 118. Qd8+ {[%clk 0:00:04]}  Ke5 {[%clk 0:00:04]} 119. Qg5+ {[%clk 0:00:03]}  Ke4 {[%clk 0:00:04]} 120. Qg6+ {[%clk 0:00:03]}  Ke3 {[%clk 0:00:04]} 121. Qh6+ {[%clk 0:00:03]}  Kf2 {[%clk 0:00:04]} 122. Qc1 {[%clk 0:00:03]}  Qxg2# {[%clk 0:00:04]} 0-1


[Site "https://www.chess.com"]

[Event "Titled Tuesday Blitz April 4 Early 2023"]
[White "Al-Tarboush, Ward"]
[Black "Kielinkei"]
[WhiteFideId "7601450"]
[WhiteElo "2265"]
[BlackElo "2426"]
[Result "1-0"]
[Round "03"]
[TimeControl "180+2"]
[Date "2023.04.04"]
[WhiteClock "0:01:25"]
[BlackClock "0:00:19"]

1. e4 {[%clk 0:03:00]}  c5 {[%clk 0:02:59]} 2. Nf3 {[%clk 0:03:01]}  e6 {[%clk 0:02:59]} 3. d4 {[%clk 0:03:01]}  cxd4 {[%clk 0:03:00]} 4. Nxd4 {[%clk 0:03:01]}  Nc6 {[%clk 0:03:00]} 5. Nc3 {[%clk 0:03:01]}  Qc7 {[%clk 0:03:01]} 6. Be3 {[%clk 0:03:01]}  a6 {[%clk 0:03:00]} 7. Qd2 {[%clk 0:03:01]}  Nf6 {[%clk 0:02:58]} 8. O-O-O {[%clk 0:03:01]}  Be7 {[%clk 0:02:58]} 9. f3 {[%clk 0:03:01]}  b5 {[%clk 0:02:54]} 10. g4 {[%clk 0:03:00]}  Nxd4 {[%clk 0:02:39]} 11. Bxd4 {[%clk 0:02:59]}  Bb7 {[%clk 0:02:29]} 12. g5 {[%clk 0:02:57]}  Nh5 {[%clk 0:02:28]} 13. Ne2 {[%clk 0:02:53]}  O-O {[%clk 0:02:23]} 14. Bh3 {[%clk 0:02:53]}  d5 {[%clk 0:02:13]} 15. Bg4 {[%clk 0:02:51]}  e5 {[%clk 0:01:57]} 16. Bc3 {[%clk 0:02:13]}  Nf4 {[%clk 0:01:52]} 17. Nxf4 {[%clk 0:02:10]}  exf4 {[%clk 0:01:51]} 18. exd5 {[%clk 0:02:09]}  Bxg5 {[%clk 0:01:42]} 19. d6 {[%clk 0:02:09]}  Qd8 {[%clk 0:01:42]} 20. h4 {[%clk 0:02:05]}  Bf6 {[%clk 0:01:42]} 21. h5 {[%clk 0:01:53]}  Bxc3 {[%clk 0:01:40]} 22. Qxc3 {[%clk 0:01:54]}  f5 {[%clk 0:01:27]} 23. h6 {[%clk 0:01:54]}  Qf6 {[%clk 0:01:06]} 24. Bxf5 {[%clk 0:01:54]}  Qxc3 {[%clk 0:01:00]} 25. Be6+ {[%clk 0:01:54]}  Kh8 {[%clk 0:00:58]} 26. bxc3 {[%clk 0:01:55]}  Bxf3 {[%clk 0:00:52]} 27. hxg7+ {[%clk 0:01:55]}  Kxg7 {[%clk 0:00:53]} 28. Rdg1+ {[%clk 0:01:52]}  Kf6 {[%clk 0:00:49]} 29. Rh6+ {[%clk 0:01:52]}  Ke5 {[%clk 0:00:48]} 30. d7 {[%clk 0:01:50]}  Rf6 {[%clk 0:00:43]} 31. Rg8 {[%clk 0:01:36]}  Rxh6 {[%clk 0:00:33]} 32. Rxa8 {[%clk 0:01:35]}  Bxa8 {[%clk 0:00:34]} 33. d8=Q {[%clk 0:01:34]}  Rxe6 {[%clk 0:00:31]} 34. Qxa8 {[%clk 0:01:33]}  Rf6 {[%clk 0:00:30]} 35. Qf3 {[%clk 0:01:30]}  Rg6 {[%clk 0:00:27]} 36. Qh5+ {[%clk 0:01:28]}  Kf6 {[%clk 0:00:24]} 37. Qh4+ {[%clk 0:01:26]}  Ke5 {[%clk 0:00:22]} 38. Qxh7 {[%clk 0:01:26]}  Rg1+ {[%clk 0:00:21]} 39. Kb2 {[%clk 0:01:26]}  f3 {[%clk 0:00:20]} 40. Qh2+ {[%clk 0:01:25]}  Ke4 {[%clk 0:00:19]} 41. Qxg1 {[%clk 0:01:25]} 1-0


[Site "https://www.chess.com"]

[Event "Titled Tuesday Blitz April 4 Early 2023"]
[White "Chandreyee, Hajra"]
[Black "Ozates, Tuna"]
[WhiteFideId "5056535"]
[BlackFideId "6354521"]
[WhiteElo "1725"]
[BlackElo "2151"]
[Result "0-1"]
[Round "03"]
[TimeControl "180+2"]
[Date "2023.04.04"]
[WhiteClock "0:01:45"]
[BlackClock "0:01:53"]

1. e4 {[%clk 0:03:00]}  e5 {[%clk 0:02:57]} 2. Nf3 {[%clk 0:03:01]}  Nc6 {[%clk 0:02:57]} 3. Bc4 {[%clk 0:02:59]}  Nf6 {[%clk 0:02:56]} 4. Ng5 {[%clk 0:02:58]}  d5 {[%clk 0:02:52]} 5. exd5 {[%clk 0:02:59]}  Na5 {[%clk 0:02:53]} 6. Bb5+ {[%clk 0:02:59]}  c6 {[%clk 0:02:53]} 7. dxc6 {[%clk 0:02:59]}  bxc6 {[%clk 0:02:54]} 8. Bd3 {[%clk 0:02:58]}  h6 {[%clk 0:02:47]} 9. Ne4 {[%clk 0:02:56]}  Nd5 {[%clk 0:02:47]} 10. O-O {[%clk 0:02:51]}  Be7 {[%clk 0:02:47]} 11. Re1 {[%clk 0:02:50]}  O-O {[%clk 0:02:47]} 12. Ng3 {[%clk 0:02:49]}  Bd6 {[%clk 0:02:47]} 13. Bf5 {[%clk 0:02:43]}  Bb7 {[%clk 0:02:28]} 14. d4 {[%clk 0:02:34]}  exd4 {[%clk 0:02:23]} 15. Qxd4 {[%clk 0:02:33]}  c5 {[%clk 0:02:22]} 16. Qg4 {[%clk 0:02:26]}  Nf6 {[%clk 0:02:21]} 17. Qh4 {[%clk 0:02:22]}  Re8 {[%clk 0:02:18]} 18. Be3 {[%clk 0:02:11]}  Be5 {[%clk 0:02:10]} 19. Nc3 {[%clk 0:01:52]}  Bxc3 {[%clk 0:01:52]} 20. bxc3 {[%clk 0:01:51]}  Qd5 {[%clk 0:01:53]} 21. Rad1 {[%clk 0:01:45]}  Qxg2# {[%clk 0:01:53]} 0-1


[Site "https://www.chess.com"]